bitfinex-derivatives/quotes_BTCF0:USTF0_20260106
["timestamp","ask_amount","ask_price","bid_price","bid_amount"]
[1767685538657,0.010723,93286.0,93274.0,0.16169488]
[1767685541149,0.010723,93284.0,93274.0,0.16169488]
[1767685541756,0.09027564,93288.0,93274.0,0.16169488]
[1767685541963,0.010723,93283.0,93274.0,0.16169488]
[1767685542156,0.010723,93286.0,93274.0,0.16169488]
[1767685545370,0.09027564,93288.0,93274.0,0.16169488]
[1767685545563,0.010723,93285.0,93274.0,0.16169488]
[1767685546554,0.15977106,93289.0,93274.0,0.16169488]
[1767685546758,0.010723,93282.0,93269.0,0.07101905]
[1767685547155,0.010723,93285.0,93271.0,0.0688747]
[1767685547574,0.09027564,93288.0,93271.0,0.0688747]
[1767685548081,0.010723,93283.0,93271.0,0.0688747]
[1767685548277,0.010724,93281.0,93271.0,0.0688747]
[1767685548681,0.010724,93280.0,93271.0,0.0688747]
[1767685549484,0.09027564,93288.0,93271.0,0.0688747]
[1767685549783,0.010723,93282.0,93271.0,0.0688747]
[1767685550881,0.010723,93282.0,93269.0,0.07101905]
[1767685551279,0.010723,93282.0,93270.0,0.22939701]
[1767685551880,0.010723,93282.0,93271.0,0.0688747]
[1767685553683,0.09027564,93298.0,93277.0,0.16216576]
[1767685553890,0.010723,93288.0,93279.0,0.0688747]
[1767685554588,0.010723,93288.0,93274.0,0.0688747]
[1767685556984,0.010722,93291.0,93275.0,0.16216576]
[1767685557184,0.010723,93288.0,93276.0,0.0688747]
[1767685557988,0.09938407,93290.0,93270.0,0.0688747]
[1767685558205,0.09938407,93280.0,93270.0,0.0688747]
[1767685558883,0.010724,93279.0,93270.0,0.0688747]
[1767685559081,0.09938407,93280.0,93269.0,0.00214435]
[1767685559288,0.010724,93278.0,93262.0,0.16216576]
[1767685559487,0.010724,93278.0,93270.0,0.16178311]
[1767685559792,0.010724,93278.0,93266.0,0.16178311]
[1767685559990,0.010724,93278.0,93264.0,0.14898808]
[1767685560189,0.010724,93278.0,93266.0,0.16178311]
[1767685560494,0.09938407,93280.0,93265.0,0.16157299]
[1767685560695,0.09938407,93280.0,93264.0,0.09116]
[1767685560889,0.010724,93276.0,93265.0,0.16157299]
[1767685561094,0.15731839,93274.0,93255.0,0.09116]
[1767685561288,0.09938407,93272.0,93255.0,0.09116]
[1767685561483,0.101884,93280.0,93240.0,8.69e-05]
[1767685561484,0.010726,93256.0,93240.0,8.69e-05]
[1767685561692,0.09116,93263.0,93244.0,0.0650198]
[1767685561995,0.09938407,93270.0,93242.0,0.010728]
[1767685561996,0.010725,93265.0,93252.0,0.0650198]
[1767685562386,0.010725,93266.0,93246.0,0.0650198]
[1767685562588,0.010726,93264.0,93246.0,0.0650198]
[1767685562894,0.010726,93262.0,93246.0,0.0650198]
[1767685563392,0.010725,93265.0,93247.0,0.0650198]
[1767685564794,0.010726,93261.0,93250.0,0.09938407]
[1767685564995,0.010726,93258.0,93247.0,0.0650198]
[1767685565203,0.09346929,93264.0,93244.0,0.09116]
[1767685565403,0.010726,93257.0,93244.0,0.09116]
[1767685565604,0.09346929,93264.0,93244.0,0.09116]
[1767685565905,0.010726,93262.0,93244.0,0.1561798]
[1767685566107,0.010726,93262.0,93245.0,0.0650198]
[1767685566400,0.010726,93258.0,93245.0,0.0650198]
[1767685566600,0.010726,93258.0,93244.0,0.09116]
[1767685566991,0.010726,93261.0,93244.0,0.09116]
[1767685567189,0.10419529,93264.0,93245.0,0.0650198]
[1767685567397,0.010726,93264.0,93246.0,0.16189476]
[1767685567598,0.09116,93267.0,93247.0,0.0650198]
[1767685567799,0.010726,93262.0,93250.0,0.09938407]
[1767685568100,0.010726,93258.0,93244.0,0.09116]
[1767685568294,0.09346929,93255.0,93244.0,0.09116]
[1767685568494,0.16323317,93260.0,93240.0,0.16449077]
[1767685568706,0.09116,93267.0,93245.0,0.0650198]
[1767685568892,0.18462929,93267.0,93245.0,0.0650198]
[1767685569393,0.09346929,93265.0,93245.0,0.0650198]
[1767685569596,0.15731839,93265.0,93245.0,0.0650198]
[1767685569798,0.15731839,93264.0,93245.0,0.0650198]
[1767685570002,0.010726,93256.0,93241.0,0.0650198]
[1767685570199,0.010726,93259.0,93241.0,0.0650198]
[1767685570400,0.10419529,93257.0,93240.0,0.09947097]
[1767685570903,0.09346929,93254.0,93240.0,8.69e-05]
[1767685571406,0.09346929,93254.0,93240.0,0.09947097]
[1767685571894,0.09346929,93254.0,93240.0,8.69e-05]
[1767685572099,0.09938407,93250.0,93240.0,8.69e-05]
[1767685572599,0.09938407,93250.0,93239.0,0.00214504]
[1767685572600,0.09346929,93249.0,93239.0,0.00214504]
[1767685572805,0.15731839,93249.0,93239.0,0.00214504]
[1767685573502,8.69e-05,93248.0,93239.0,0.00214504]
[1767685574498,0.09355619,93248.0,93239.0,0.00214504]
[1767685574904,0.010728,93245.0,93239.0,0.00214504]
[1767685575510,0.010728,93243.0,93239.0,0.00214504]
[1767685576012,0.010728,93243.0,93228.0,0.09116]
[1767685576407,0.0638491,93247.0,93228.0,0.09116]
[1767685576609,0.010728,93245.0,93228.0,0.09116]
[1767685577407,0.0638491,93247.0,93228.0,0.09116]
[1767685577607,8.69e-05,93248.0,93231.0,0.0650198]
[1767685578413,8.69e-05,93248.0,93230.0,0.16440387]
[1767685578711,8.69e-05,93248.0,93212.0,0.0575912]
[1767685578712,0.09346929,93274.0,93249.0,0.0650198]
[1767685578904,0.010725,93271.0,93254.0,0.0650198]
[1767685579106,0.09938407,93280.0,93254.0,0.0650198]
[1767685579107,0.09346929,93281.0,93255.0,0.09687496]
[1767685579303,0.09346929,93281.0,93250.0,0.09938407]
[1767685579304,0.00214366,93299.0,93268.0,0.0650198]
[1767685579305,0.0912,93285.0,93268.0,0.0650198]
[1767685579613,0.0912,93287.0,93271.0,0.0650198]
[1767685580010,0.008723,93286.0,93271.0,0.0650198]
[1767685580412,0.0912,93287.0,93271.0,0.0650198]
[1767685580711,0.0912,93287.0,93260.0,0.09938407]
[1767685580712,0.09938407,93281.0,93262.0,0.0650198]
[1767685581102,0.010724,93280.0,93263.0,0.15990344]
[1767685582213,0.11010807,93280.0,93263.0,0.15990344]
[1767685584516,0.11010807,93280.0,93263.0,0.22492324]
[1767685584707,0.010724,93277.0,93263.0,0.22492324]
[1767685584908,0.0912,93287.0,93262.0,0.16021418]
[1767685584909,0.010725,93272.0,93262.0,0.16021418]
[1767685585107,0.00214435,93269.0,93258.0,0.09116]
[1767685585303,0.00214435,93269.0,93261.0,0.16021418]
[1767685585513,0.09346929,93275.0,93259.0,0.25960679]
[1767685585713,0.09346929,93275.0,93260.0,0.09938407]
[1767685585917,0.0638491,93280.0,93260.0,0.09938407]
[1767685586104,0.10419329,93281.0,93260.0,0.09938407]
[1767685586105,0.10419329,93281.0,93260.0,0.32462659]
[1767685586301,0.10419329,93281.0,93261.0,0.0650198]
[1767685586505,0.10419329,93281.0,93261.0,0.22552729]
[1767685586909,0.010724,93281.0,93263.0,0.16189476]
[1767685587208,0.09116,93280.0,93270.0,0.09938407]
[1767685587416,0.09116,93283.0,93270.0,0.16440387]
[1767685588606,0.09116,93283.0,93270.0,0.09938407]
[1767685589008,0.09116,93283.0,93266.0,0.0650198]
[1767685589210,0.101883,93283.0,93266.0,0.0650198]
[1767685592226,0.010724,93281.0,93266.0,0.0650198]
[1767685592609,0.010723,93282.0,93266.0,0.0650198]
[1767685592810,0.010724,93280.0,93266.0,0.0650198]
[1767685593016,0.010724,93280.0,93263.0,0.09687496]
[1767685593220,0.010724,93280.0,93263.0,0.1596907]
[1767685593422,0.09116,93283.0,93263.0,0.1596907]
[1767685593423,0.101883,93283.0,93264.0,0.06281574]
[1767685593609,0.010724,93281.0,93264.0,0.06281574]
[1767685593809,0.010724,93279.0,93264.0,0.06281574]
[1767685594219,0.09116,93283.0,93260.0,0.09938407]
[1767685594220,0.0950443,93282.0,93260.0,0.16219981]
[1767685594412,0.0950443,93276.0,93258.0,0.09116]
[1767685594608,0.010724,93275.0,93261.0,0.1601862]
[1767685594822,0.010724,93275.0,93259.0,0.1601862]
[1767685595022,0.010724,93275.0,93259.0,0.06281574]
[1767685595206,0.010724,93275.0,93260.0,0.09938407]
[1767685595410,0.1057683,93276.0,93260.0,0.09938407]
[1767685595605,0.0950443,93276.0,93261.0,0.1607066]
[1767685595910,0.010724,93279.0,93261.0,0.1607066]
[1767685596328,0.010724,93277.0,93261.0,0.1607066]
[1767685597807,0.010724,93280.0,93262.0,0.15985797]
[1767685598119,0.010723,93282.0,93263.0,0.06281574]
[1767685598307,0.010723,93282.0,93264.0,0.06281574]
[1767685599519,0.09116,93283.0,93264.0,0.06281574]
[1767685599719,0.09116,93283.0,93270.0,0.09938407]
[1767685599922,0.010723,93282.0,93264.0,0.06281574]
[1767685600718,0.010723,93282.0,93270.0,0.16219981]
[1767685600918,0.010723,93282.0,93270.0,0.06281574]
[1767685601119,0.09116,93283.0,93266.0,0.06281574]
[1767685602313,0.010723,93282.0,93266.0,0.06281574]
[1767685602916,0.010724,93277.0,93262.0,0.06281574]
[1767685603321,0.010724,93280.0,93262.0,0.06281574]
[1767685603516,0.2542608,93283.0,93262.0,0.07354174]
[1767685603719,0.010724,93281.0,93264.0,0.06281574]
[1767685607726,0.1862043,93283.0,93264.0,0.06281574]
[1767685607910,0.010723,93282.0,93264.0,0.06281574]
[1767685608225,0.010724,93280.0,93264.0,0.06281574]
[1767685608625,0.1969273,93283.0,93264.0,0.06281574]
[1767685608923,0.02319539,93282.0,93264.0,0.06281574]
[1767685609218,0.02319539,93281.0,93264.0,0.06281574]
[1767685609424,0.02319539,93280.0,93264.0,0.06281574]
[1767685609724,0.1969273,93283.0,93264.0,0.06281574]
[1767685609925,0.02320525,93282.0,93264.0,0.06281574]
[1767685610126,0.02320525,93281.0,93264.0,0.06281574]
[1767685610324,0.02320525,93280.0,93264.0,0.06281574]
[1767685610625,0.1862043,93283.0,93265.0,0.07101302]
[1767685610827,0.02320682,93282.0,93265.0,0.06028802]
[1767685611122,0.02320682,93281.0,93265.0,0.06028802]
[1767685611326,0.02320682,93280.0,93265.0,0.06028802]
[1767685611525,0.1969273,93283.0,93265.0,0.06028802]
[1767685611822,0.02320763,93282.0,93265.0,0.06028802]
[1767685612024,0.02320763,93281.0,93265.0,0.06028802]
[1767685612224,0.02320763,93280.0,93265.0,0.07101302]
[1767685612424,0.1969273,93283.0,93265.0,0.07101302]
[1767685612628,0.02320895,93282.0,93265.0,0.07101302]
[1767685612827,0.02320895,93281.0,93265.0,0.06028802]
[1767685613019,0.02320895,93280.0,93265.0,0.06028802]
[1767685613318,0.1969273,93283.0,93265.0,0.06028802]
[1767685613518,0.02320924,93282.0,93265.0,0.06028802]
[1767685613730,0.02320924,93281.0,93265.0,0.06028802]
[1767685613918,0.02320924,93280.0,93259.0,0.0578882]
[1767685614120,0.1523778,93272.0,93254.0,0.010727]
[1767685614319,0.0950443,93271.0,93259.0,0.16102807]
[1767685614520,0.1631018,93276.0,93259.0,0.16102807]
[1767685614829,0.1523778,93276.0,93257.0,0.0578882]
[1767685615127,0.1523778,93276.0,93259.0,0.16068236]
[1767685615324,0.010724,93275.0,93259.0,0.16068236]
[1767685615530,0.010724,93273.0,93257.0,0.0578882]
[1767685615829,0.010725,93269.0,93260.0,0.16168766]
[1767685616124,0.010725,93269.0,93250.0,0.010727]
[1767685616125,0.0950443,93271.0,93256.0,0.16168766]
[1767685616328,0.010725,93272.0,93256.0,0.21840149]
[1767685616529,0.010725,93272.0,93256.0,0.05671383]
[1767685616823,0.0573335,93275.0,93254.0,0.25282809]
[1767685616824,0.010724,93275.0,93258.0,0.05619875]
[1767685617418,0.010725,93273.0,93258.0,0.05619875]
[1767685617839,0.0950443,93276.0,93258.0,0.05619875]
[1767685619127,0.1057693,93267.0,93247.0,0.05534563]
[1767685619428,0.1057693,93267.0,93255.0,0.16152733]
[1767685619729,0.1057693,93267.0,93251.0,0.14650563]
[1767685619730,0.010725,93267.0,93251.0,0.14650563]
[1767685620127,0.010725,93267.0,93256.0,0.16152733]
[1767685620329,0.05465072,93266.0,93252.0,0.16152733]
[1767685620530,0.0993957,93290.0,93242.0,0.09116]
[1767685620531,0.15172656,93261.0,93242.0,0.09116]
[1767685620733,0.09707584,93257.0,93236.0,0.05209454]
[1767685620930,0.05465072,93241.0,93219.0,0.09624573]
[1767685621131,0.010729,93236.0,93220.0,0.052204]
[1767685621332,0.010729,93236.0,93224.0,0.16017475]
[1767685621529,0.010729,93236.0,93220.0,0.052204]
[1767685621731,0.010729,93234.0,93220.0,0.052204]
[1767685621927,0.010729,93234.0,93222.0,0.16061182]
[1767685622129,0.010729,93234.0,93221.0,0.16061182]
[1767685622434,0.010729,93234.0,93217.0,0.09460968]
[1767685622435,0.09941596,93238.0,93217.0,0.09460968]
[1767685622628,0.09941596,93238.0,93221.0,0.16030318]
[1767685622827,0.010729,93233.0,93218.0,0.16030318]
[1767685623026,0.010729,93231.0,93212.0,0.052204]
[1767685623228,0.010729,93231.0,93218.0,0.16030318]
[1767685623433,0.01073,93229.0,93218.0,0.16030318]
[1767685623633,0.15300631,93231.0,93211.0,0.05]
[1767685623930,0.11014596,93222.0,93214.0,0.16138814]
[1767685624135,0.09941596,93222.0,93214.0,0.16138814]
[1767685624337,0.01073,93225.0,93211.0,0.05]
[1767685624637,0.11014596,93228.0,93214.0,0.16115567]
[1767685624936,0.11014596,93228.0,93211.0,0.05]
[1767685625129,0.09941596,93228.0,93211.0,0.05]
[1767685625337,0.01073,93227.0,93214.0,0.16115567]
[1767685625640,0.01073,93224.0,93211.0,0.05]
[1767685625829,0.09941596,93228.0,93211.0,0.05]
[1767685626029,0.01073,93224.0,93214.0,0.16197453]
[1767685626240,0.01073,93227.0,93212.0,0.16197453]
[1767685626541,0.01073,93227.0,93211.0,0.05]
[1767685626728,0.01073,93227.0,93212.0,0.16098807]
[1767685626929,0.01073,93225.0,93212.0,0.16098807]
[1767685627233,0.16373731,93219.0,93209.0,1.38e-06]
[1767685627537,0.0912,93218.0,93210.0,0.13227807]
[1767685627834,0.0912,93218.0,93205.0,0.16089505]
[1767685628026,0.15300631,93226.0,93206.0,0.052204]
[1767685628228,0.09941596,93226.0,93207.0,0.052204]
[1767685628430,0.01073,93222.0,93207.0,0.21309905]
[1767685628629,0.01073,93222.0,93208.0,0.052204]
[1767685629032,0.01073,93222.0,93209.0,0.16000974]
[1767685629433,0.01073,93224.0,93209.0,0.16000974]
[1767685629732,0.15300631,93237.0,93213.0,0.14403234]
[1767685629936,0.0912,93236.0,93217.0,0.052204]
[1767685630242,0.0912,93235.0,93223.0,0.052204]
[1767685630443,0.0912,93234.0,93223.0,0.052204]
[1767685631124,0.0912,93234.0,93222.0,0.09182834]
[1767685631333,0.0912,93234.0,93218.0,0.052204]
[1767685632840,0.0912,93234.0,93219.0,0.09182834]
[1767685633035,0.0912,93234.0,93220.0,0.052204]
[1767685633231,0.0912,93234.0,93204.0,0.03026625]
[1767685633232,0.010728,93247.0,93226.0,0.052204]
[1767685633540,0.0912,93246.0,93228.0,0.052204]
[1767685633734,0.09941596,93249.0,93229.0,0.052204]
[1767685633934,0.1487859,93288.0,93235.0,0.052204]
[1767685633935,0.010726,93257.0,93235.0,0.052204]
[1767685634135,0.010727,93255.0,93237.0,0.052204]
[1767685634339,0.0912,93254.0,93237.0,0.052204]
[1767685634931,0.010727,93253.0,93237.0,0.052204]
[1767685635533,0.57264,93268.0,93242.0,0.09182834]
[1767685635534,0.010726,93264.0,93242.0,0.09182834]
[1767685635734,0.0912,93263.0,93248.0,0.052204]
[1767685636045,0.0912,93263.0,93251.0,0.052204]
[1767685636244,0.11013996,93274.0,93251.0,0.052204]
[1767685636443,0.0912,93273.0,93252.0,0.052204]
[1767685636636,0.0912,93272.0,93256.0,0.052204]
[1767685636843,0.09941596,93280.0,93182.0,0.175376]
[1767685636844,0.0912,93273.0,93258.0,0.14403234]
[1767685637144,0.0912,93273.0,93259.0,0.14403234]
[1767685637337,0.0912,93273.0,93260.0,0.14403234]
[1767685637534,0.010723,93285.0,93260.0,0.14403234]
[1767685637739,0.010723,93283.0,93260.0,0.14403234]
[1767685638245,0.0912,93282.0,93261.0,0.14403234]
[1767685638440,0.0912,93282.0,93263.0,0.052204]
[1767685639249,0.0912,93282.0,93268.0,0.052204]
[1767685639747,0.0912,93282.0,93263.0,0.052204]
[1767685639943,0.0912,93282.0,93260.0,0.09182834]
[1767685640639,0.010724,93280.0,93258.0,0.052204]
[1767685640847,0.15300631,93281.0,93258.0,0.14403234]
[1767685641147,0.15300631,93281.0,93259.0,0.14403234]
[1767685644147,0.010724,93280.0,93259.0,0.14403234]
[1767685645250,0.15300631,93281.0,93261.0,0.010726]
[1767685645551,0.0912,93282.0,93263.0,0.010726]
[1767685645751,0.0912,93282.0,93263.0,0.06293]
[1767685646253,0.0912,93282.0,93265.0,0.052204]
[1767685647552,0.0912,93282.0,93265.0,0.062929]
[1767685648449,0.0912,93282.0,93266.0,0.052204]
[1767685650548,0.09116,93283.0,93270.0,0.052204]
[1767685650942,0.09116,93283.0,93266.0,0.052204]
[1767685651739,0.010724,93281.0,93263.0,0.09733307]
[1767685652251,0.010724,93281.0,93258.0,0.05330286]
[1767685652252,0.09917022,93281.0,93258.0,0.05330286]
[1767685652554,0.15090306,93275.0,93260.0,0.16021517]
[1767685652853,0.09917022,93275.0,93256.0,0.101886]
[1767685653155,0.09917022,93275.0,93257.0,0.16021517]
[1767685653453,0.09917022,93275.0,93258.0,0.010726]
[1767685653649,0.05173284,93279.0,93260.0,0.010726]
[1767685653957,0.010724,93281.0,93261.0,0.21491229]
[1767685654751,0.010724,93281.0,93262.0,0.010726]
[1767685655255,0.010724,93281.0,93261.0,0.21491229]
[1767685655256,0.09116,93283.0,93265.0,0.05330286]
[1767685655643,0.010723,93282.0,93267.0,0.05330286]
[1767685655845,0.09116,93283.0,93267.0,0.05330286]
[1767685656151,0.010724,93280.0,93262.0,0.05330286]
[1767685656357,0.15090306,93282.0,93262.0,0.05330286]
[1767685658253,0.15090306,93282.0,93263.0,0.010726]
[1767685658854,0.09917022,93282.0,93263.0,0.010726]
[1767685659151,0.101883,93283.0,93264.0,0.05330286]
[1767685659349,0.010724,93278.0,93264.0,0.05330286]
[1767685659548,0.09116,93283.0,93264.0,0.05330286]
[1767685660048,0.09116,93283.0,93264.0,0.15063593]
[1767685660248,0.09116,93283.0,93270.0,0.05330286]
[1767685661352,0.010721,93302.0,93256.0,0.09116]
[1767685661353,0.15090306,93295.0,93273.0,0.05330286]
[1767685661556,0.15090306,93295.0,93274.0,0.06402686]
[1767685661752,0.06245384,93300.0,93279.0,0.05330286]
[1767685661958,0.09116,93294.0,93280.0,0.010724]
[1767685662748,0.09116,93294.0,93279.0,0.06402686]
[1767685663262,0.101882,93294.0,93277.0,0.09733307]
[1767685663454,0.14289284,93294.0,93272.0,0.09733307]
[1767685663651,0.14289284,93294.0,93274.0,0.010724]
[1767685663869,0.16162406,93304.0,93283.0,0.010723]
[1767685664053,0.09116,93293.0,93283.0,0.010723]
[1767685665462,0.09116,93293.0,93280.0,0.05330286]
[1767685666167,0.09116,93293.0,93280.0,0.05115782]
[1767685666357,0.05173284,93290.0,93266.0,0.27419201]
[1767685666665,0.15112107,93290.0,93271.0,0.010725]
[1767685666870,0.09938823,93290.0,93271.0,0.010725]
[1767685667063,0.09938823,93290.0,93260.0,0.09938823]
[1767685667064,0.15090306,93278.0,93259.0,0.09116]
[1767685667265,0.010722,93295.0,93251.0,0.09116]
[1767685667266,0.25029129,93270.0,93251.0,0.09116]
[1767685667474,0.25029129,93270.0,93252.0,0.16028413]
[1767685667763,0.19855845,93270.0,93251.0,0.09116]
[1767685668064,0.19855845,93270.0,93253.0,0.16009519]
[1767685668263,0.14289284,93274.0,93252.0,0.17082219]
[1767685668468,0.02399705,93273.0,93252.0,0.010727]
[1767685668660,0.14289284,93274.0,93254.0,0.010727]
[1767685668861,0.02399704,93273.0,93254.0,0.010727]
[1767685669165,0.15090306,93272.0,93255.0,0.16152708]
[1767685669468,0.15090306,93272.0,93254.0,0.16152708]
[1767685669769,0.15090306,93272.0,93253.0,0.1604386]
[1767685670164,0.15090306,93279.0,93255.0,0.15063593]
[1767685670466,0.15090306,93279.0,93257.0,0.05330286]
[1767685670467,0.11515449,93278.0,93257.0,0.05330286]
[1767685670767,0.02399449,93277.0,93258.0,0.06402886]
[1767685671070,0.09116,93278.0,93262.0,0.010726]
[1767685671374,0.09116,93278.0,93259.0,0.06402886]
[1767685672269,0.09116,93279.0,93261.0,0.06402886]
[1767685672464,0.02399419,93278.0,93261.0,0.06402886]
[1767685672665,0.09116,93279.0,93261.0,0.06402886]
[1767685672864,0.0239942,93278.0,93261.0,0.06402886]
[1767685673063,0.09116,93279.0,93261.0,0.06402886]
[1767685673264,0.02399408,93278.0,93261.0,0.06402886]
[1767685673464,0.09116,93279.0,93263.0,0.010726]
[1767685673769,0.02399406,93278.0,93261.0,0.06402886]
[1767685673960,0.09116,93279.0,93263.0,0.010726]
[1767685674160,0.02399405,93278.0,93263.0,0.010726]
[1767685674468,0.00214435,93269.0,93263.0,0.010726]
[1767685674659,0.15090306,93284.0,93264.0,0.010725]
[1767685674863,0.11515398,93283.0,93266.0,0.010725]
[1767685675060,0.02399398,93282.0,93266.0,0.010725]
[1767685675260,0.02399398,93282.0,93268.0,0.010725]
[1767685675467,0.19033022,93284.0,93268.0,0.010725]
[1767685675665,0.02399361,93283.0,93268.0,0.010725]
[1767685675865,0.101883,93290.0,93270.0,0.0461099]
[1767685676062,0.010723,93288.0,93270.0,0.0461099]
[1767685676259,0.02399489,93287.0,93270.0,0.0568349]
[1767685676464,0.02399489,93286.0,93270.0,0.0568349]
[1767685676665,0.02399489,93285.0,93270.0,0.010725]
[1767685676866,0.02399489,93284.0,93270.0,0.010725]
[1767685677170,0.010723,93289.0,93270.0,0.010725]
[1767685677361,0.02399537,93288.0,93270.0,0.010725]
[1767685677561,0.02399537,93287.0,93270.0,0.010725]
[1767685677766,0.02399537,93286.0,93273.0,0.010724]
[1767685677967,0.09116,93291.0,93273.0,0.0461099]
[1767685679367,0.09116,93291.0,93274.0,0.010724]
[1767685679566,0.09116,93291.0,93276.0,0.010724]
[1767685679776,0.09116,93292.0,93276.0,0.010724]
[1767685680069,0.09116,93292.0,93273.0,0.0568339]
[1767685680472,0.101882,93292.0,93273.0,0.0461099]
[1767685680868,0.101882,93292.0,93272.0,0.010724]
[1767685681172,0.09116,93292.0,93274.0,0.010724]
[1767685681371,0.09116,93292.0,93274.0,0.05874994]
[1767685682174,0.14193859,93291.0,93271.0,0.010725]
[1767685683276,0.010723,93289.0,93271.0,0.010725]
[1767685683770,0.14193859,93284.0,93263.0,0.04802594]
[1767685683976,0.09116,93292.0,93264.0,0.09116]
[1767685683977,0.14193859,93281.0,93264.0,0.09116]
[1767685684170,0.14193859,93281.0,93265.0,0.010725]
[1767685684377,0.010723,93283.0,93265.0,0.010725]
[1767685684577,0.05758713,93286.0,93265.0,0.010725]
[1767685684878,0.010723,93284.0,93265.0,0.010725]
[1767685685063,0.04686413,93286.0,93267.0,0.010725]
[1767685685267,0.09507446,93287.0,93271.0,0.010725]
[1767685685767,0.010723,93290.0,93271.0,0.010725]
[1767685687581,0.13802413,93292.0,93273.0,0.010724]
[1767685687779,0.14193859,93292.0,93273.0,0.010724]
[1767685687970,0.09116,93291.0,93273.0,0.010724]
[1767685688171,0.09507446,93292.0,93272.0,0.13902959]
[1767685688372,0.09116,93291.0,93273.0,0.04802594]
[1767685688678,0.09116,93292.0,93274.0,0.04802594]
[1767685689181,0.15266059,93297.0,93274.0,0.04802594]
[1767685689480,0.09116,93296.0,93274.0,0.04802594]
[1767685690183,0.02390077,93295.0,93279.0,0.04802594]
[1767685690367,0.101882,93296.0,93278.0,0.09100365]
[1767685690679,0.02390106,93295.0,93278.0,0.13902959]
[1767685690864,0.09507446,93298.0,93280.0,0.09936667]
[1767685691065,0.02390106,93297.0,93280.0,0.09936667]
[1767685691265,0.03462306,93296.0,93280.0,0.09936667]
[1767685691476,0.010722,93296.0,93280.0,0.09936667]
[1767685691677,0.010722,93296.0,93278.0,0.13902959]
[1767685691873,0.09507446,93280.0,93262.0,0.010726]
[1767685692078,0.010724,93279.0,93263.0,0.09116]
[1767685692280,0.24130526,93280.0,93269.0,0.16155888]
[1767685692477,0.010723,93290.0,93271.0,0.13902959]
[1767685692684,0.14193859,93289.0,93270.0,0.09936667]
[1767685692883,0.010723,93286.0,93272.0,0.1613288]
[1767685693083,0.14193859,93283.0,93271.0,0.1613288]
[1767685693279,0.14193859,93283.0,93266.0,0.1613288]
[1767685693483,0.14193859,93283.0,93265.0,0.1613288]
[1767685693784,0.14193859,93283.0,93264.0,0.09116]
[1767685694083,0.14193859,93283.0,93265.0,0.16187914]
[1767685694484,0.09936667,93280.0,93265.0,0.16187914]
[1767685694669,0.09936667,93280.0,93265.0,0.25303914]
[1767685695074,0.15266259,93282.0,93265.0,0.09116]
[1767685695274,0.15266259,93282.0,93266.0,0.16156878]
[1767685695976,0.14193859,93282.0,93266.0,0.16156878]
[1767685696575,0.09936667,93280.0,93266.0,0.16156878]
[1767685696884,0.010724,93274.0,93261.0,0.09116]
[1767685697079,0.14193859,93277.0,93261.0,0.09116]
[1767685697080,0.15266259,93277.0,93261.0,0.09116]
[1767685697280,0.15266259,93277.0,93261.0,0.25165481]
[1767685697983,0.14193859,93277.0,93261.0,0.25165481]
[1767685698481,0.14193859,93277.0,93261.0,0.16049481]
[1767685698883,0.14193859,93277.0,93258.0,0.09116]
[1767685699085,0.14193859,93277.0,93259.0,0.15983781]
[1767685701485,0.09507446,93277.0,93260.0,0.11009267]
[1767685701690,0.04686413,93281.0,93262.0,0.010726]
[1767685701991,0.010724,93279.0,93263.0,0.15985965]
[1767685702285,0.010724,93279.0,93260.0,0.25922632]
[1767685702590,0.010724,93279.0,93262.0,0.15985965]
[1767685702890,0.010724,93278.0,93261.0,0.16014593]
[1767685703288,0.010724,93278.0,93260.0,0.09936667]
[1767685703289,0.1462308,93280.0,93260.0,0.2702386]
[1767685703485,0.1462308,93280.0,93260.0,0.11009267]
[1767685703681,0.04686413,93280.0,93261.0,0.04802594]
[1767685703888,0.010724,93277.0,93261.0,0.16027451]
[1767685704081,0.04686413,93278.0,93261.0,0.16027451]
[1767685704482,0.04686413,93278.0,93261.0,0.16022451]
[1767685707293,0.09507446,93279.0,93261.0,0.16022451]
[1767685707489,0.09507446,93279.0,93261.0,0.20825045]
[1767685708795,0.09936667,93280.0,93262.0,0.04802594]
[1767685709093,0.09936667,93280.0,93263.0,0.16081504]
[1767685709498,0.05758813,93281.0,93263.0,0.16081504]
[1767685709794,0.010724,93279.0,93263.0,0.16081504]
[1767685710793,0.04686413,93281.0,93263.0,0.21956698]
[1767685710992,0.010723,93288.0,93270.0,0.09936667]
[1767685711191,0.11493432,93287.0,93270.0,0.09936667]
[1767685711392,0.02377432,93286.0,93270.0,0.14285885]
[1767685711693,0.02377432,93286.0,93271.0,0.04349218]
[1767685711891,0.0559169,93291.0,93272.0,0.04349218]
[1767685712087,0.02377496,93290.0,93272.0,0.04349218]
[1767685712292,0.02377496,93289.0,93272.0,0.04349218]
[1767685712495,0.02377496,93288.0,93272.0,0.04349218]
[1767685712689,0.02377496,93287.0,93272.0,0.04349218]
[1767685712891,0.0559169,93291.0,93272.0,0.04349218]
[1767685713091,0.02377593,93290.0,93272.0,0.04349218]
[1767685713290,0.02377593,93289.0,93272.0,0.04349218]
[1767685713491,0.02377593,93288.0,93272.0,0.04349218]
[1767685713790,0.02377593,93287.0,93272.0,0.04349218]
[1767685714096,0.0559169,93291.0,93272.0,0.04349218]
[1767685714297,0.02377643,93290.0,93272.0,0.04349218]
[1767685714494,0.02377643,93289.0,93272.0,0.04349218]
[1767685714695,0.0559169,93291.0,93272.0,0.04349218]
[1767685714992,0.12314308,93290.0,93272.0,0.04349218]
[1767685715192,0.02377641,93289.0,93273.0,0.05421618]
[1767685715398,0.09116,93294.0,93273.0,0.05421618]
[1767685715595,0.03449648,93293.0,93273.0,0.05421618]
[1767685715793,0.02377448,93292.0,93280.0,0.09936667]
[1767685715998,0.02377448,93291.0,93276.0,0.04349218]
[1767685716200,0.02377448,93290.0,93276.0,0.04349218]
[1767685716404,0.02377448,93289.0,93276.0,0.04349218]
[1767685716599,0.09116,93294.0,93276.0,0.04349218]
[1767685716802,0.02377451,93293.0,93276.0,0.04349218]
[1767685717099,0.09936667,93300.0,93276.0,0.04349218]
[1767685717100,0.02377451,93292.0,93280.0,0.14285885]
[1767685717290,0.02377451,93291.0,93281.0,0.04349218]
[1767685717488,0.09116,93295.0,93280.0,0.09203797]
[1767685717489,0.02377451,93290.0,93280.0,0.19140464]
[1767685717687,0.09116,93295.0,93280.0,0.09936667]
[1767685717900,0.0237744,93294.0,93281.0,0.04349218]
[1767685718090,0.0237744,93293.0,93281.0,0.04349218]
[1767685718297,0.101882,93298.0,93281.0,0.04349218]
[1767685718492,0.02377386,93297.0,93281.0,0.04349218]